fUST/lending_fUST_20250601
["ID","MTS","AMOUNT","RATE_DAILY","PERIOD"]
[363530161,1748753443001,-430.0,0.00017808,2]
[363530162,1748753443011,-542.19942035,0.00017808,2]
[363530165,1748753443020,-430.0,0.00017808,2]
[363530166,1748753443030,-430.0,0.00017808,2]
[363530168,1748753443040,-430.0,0.00017808,2]
[363530170,1748753443049,-430.0,0.00017808,2]
[363530173,1748753443059,-430.0,0.00017808,2]
[363530175,1748753443068,-430.0,0.00017808,2]
[363530177,1748753443078,-455.83,0.00017808,2]
[363530180,1748753443087,-430.0,0.00017808,2]
[363530183,1748753443097,-430.0,0.00017808,2]
[363530184,1748753443106,-430.0,0.00017808,2]
[363530187,1748753443115,-560.98,0.00017808,2]
[363530189,1748753443125,-467.84,0.00017808,2]
[363530190,1748753443134,-430.0,0.00017808,2]
[363530192,1748753443143,-430.0,0.00017808,2]
[363530194,1748753443154,-1445.06,0.00017808,2]
[363530198,1748753443176,-728.13,0.00017831,2]
[363530200,1748753443189,-945.44,0.00017831,2]
[363530202,1748753443199,-1308.5,0.00017831,2]
[363530204,1748753443210,-829.74,0.00017831,2]
[363530207,1748753443221,-430.0,0.00017831,2]
[363530209,1748753443231,-430.0,0.00017831,2]
[363530211,1748753443241,-430.0,0.00017831,2]
[363530213,1748753443251,-430.0,0.00017832,2]
[363530215,1748753443261,-430.0,0.00017832,2]
[363530217,1748753443272,-275.90909246,0.00017832,2]
[363530219,1748753443282,-448.76827934,0.00017832,2]
[363530221,1748753443292,-1126.60467226,0.000179,2]
[363530223,1748753443302,-502.66042553,0.00017952,2]
[363530225,1748753443312,-198.33,0.00018,2]
[363530227,1748753443322,-500.0,0.00018039,2]
[363530230,1748753443333,-430.0,0.00018082,2]
[363530233,1748753443343,-430.0,0.00018082,2]
[363530237,1748753443353,-579.4,0.00018082,2]
[363530240,1748753443363,-151.66,0.00018082,2]
[363530244,1748753443373,-151.0,0.00018082,2]
[363530247,1748753443382,-476.21,0.00018082,2]
[363530250,1748753443392,-575.98,0.00018082,2]
[363530253,1748753443403,-663.33,0.00018082,2]
[363530256,1748753443413,-430.0,0.00018082,2]
[363530258,1748753443423,-430.0,0.00018082,2]
[363530260,1748753443432,-531.97,0.00018082,2]
[363530262,1748753443442,-803.729258,0.00018082,2]
[363530264,1748753443451,-430.0,0.00018082,2]
[363530266,1748753443461,-803.729258,0.00018082,2]
[363530268,1748753443471,-1359.36,0.00018082,2]
[363530270,1748753443484,-430.0,0.00018082,2]
[363530272,1748753443494,-430.0,0.00018082,2]
[363530274,1748753443504,-430.0,0.00018082,2]
[363530276,1748753443514,-430.0,0.00018082,2]
[363530278,1748753443525,-430.0,0.00018082,2]
[363530280,1748753443534,-430.0,0.00018082,2]
[363530282,1748753443544,-566.34,0.00018082,2]
[363530284,1748753443555,-430.0,0.00018082,2]
[363530286,1748753443564,-430.0,0.00018082,2]
[363530289,1748753443574,-430.0,0.00018082,2]
[363530290,1748753443584,-430.0,0.00018082,2]
[363530293,1748753443595,-430.0,0.00018082,2]
[363530295,1748753443605,-430.0,0.00018082,2]
[363530297,1748753443614,-430.0,0.00018082,2]
[363530298,1748753443624,-430.0,0.00018082,2]
[363530300,1748753443634,-430.0,0.00018082,2]
[363530303,1748753443644,-455.83,0.00018082,2]
[363530304,1748753443656,-430.0,0.00018082,2]
[363530306,1748753443666,-155.0,0.00018082,2]
[363530308,1748753443676,-430.0,0.00018082,2]
[363530311,1748753443686,-430.0,0.00018082,2]
[363530313,1748753443697,-560.98,0.00018082,2]
[363530315,1748753443707,-467.84,0.00018082,2]
[363530317,1748753443716,-430.0,0.00018082,2]
[363530319,1748753443726,-517.4,0.00018082,2]
[363530321,1748753443736,-1445.06,0.00018082,2]
[363530323,1748753443745,-728.13,0.00018105,2]
[363530325,1748753443755,-945.44,0.00018105,2]
[363530327,1748753443765,-1308.5,0.00018105,2]
[363530329,1748753443775,-829.74,0.00018105,2]
[363530331,1748753443784,-430.0,0.00018105,2]
[363530334,1748753443796,-430.0,0.00018105,2]
[363530337,1748753443806,-430.0,0.00018105,2]
[363530340,1748753443816,-430.0,0.00018106,2]
[363530343,1748753443829,-1126.60467215,0.00018107,2]
[363530345,1748753443840,-1126.60467215,0.00018314,2]
[363530347,1748753443851,-249.4,0.00018346,3]
[363530350,1748753443863,-748.22,0.00018346,3]
[363530352,1748753443874,-430.0,0.00018356,2]
[363530354,1748753443885,-430.0,0.00018356,2]
[363530356,1748753443896,-575.98,0.00018356,2]
[363530358,1748753443909,-663.33,0.00018356,2]
[363530360,1748753443919,-430.0,0.00018356,2]
[363530362,1748753443929,-430.0,0.00018356,2]
[363530364,1748753443940,-531.97,0.00018356,2]
[363530366,1748753443951,-430.0,0.00018356,2]
[363530368,1748753443961,-1359.36,0.00018356,2]
[363530370,1748753443971,-430.0,0.00018356,2]
[363530372,1748753443982,-430.0,0.00018356,2]
[363530374,1748753443992,-430.0,0.00018356,2]
[363530376,1748753444004,-275.31759506,0.00018356,2]
[363530378,1748753444014,-430.0,0.00018356,2]
[363530380,1748753444024,-430.0,0.00018356,2]
[363530382,1748753444035,-566.34,0.00018356,2]
[363530384,1748753444044,-430.0,0.00018356,2]
[363530386,1748753444054,-430.0,0.00018356,2]
[363530388,1748753444064,-496.39434865,0.00018356,2]
[363530391,1748753444074,-430.0,0.00018356,2]
[363530392,1748753444084,-430.0,0.00018356,2]
[363530394,1748753444094,-430.0,0.00018356,2]
[363530397,1748753444105,-285.58,0.00018356,2]
[363530399,1748753444115,-430.0,0.00018356,2]
[363530400,1748753444125,-430.0,0.00018356,2]
[363530403,1748753444134,-455.83,0.00018356,2]
[363530405,1748753444145,-430.0,0.00018356,2]
[363530407,1748753444157,-430.0,0.00018356,2]
[363530409,1748753444167,-430.0,0.00018356,2]
[363530411,1748753444178,-560.98,0.00018356,2]
[363530413,1748753444188,-467.84,0.00018356,2]
[363530415,1748753444198,-430.0,0.00018356,2]
[363530417,1748753444208,-1445.06,0.00018356,2]
[363530419,1748753444217,-728.13,0.00018379,2]
[363530421,1748753444227,-945.44,0.00018379,2]
[363530423,1748753444237,-1308.5,0.00018379,2]
[363530425,1748753444246,-829.74,0.00018379,2]
[363530427,1748753444256,-430.0,0.00018379,2]
[363530429,1748753444265,-263.03,0.00018379,2]
[363530431,1748753444275,-326.82,0.00018379,2]
[363530433,1748753444285,-430.0,0.0001838,2]
[363530435,1748753444295,-181.47293713,0.00018496,2]
[363530437,1748753444304,-500.0,0.00018496,2]
[363530439,1748753444313,-1126.60467215,0.00018521,2]
[363530441,1748753444323,-153.0,0.00018575,2]
[363530443,1748753444333,-153.0,0.00018575,2]
[363530445,1748753444342,-430.0,0.0001863,2]
[363530447,1748753444352,-151.0,0.0001863,2]
[363530449,1748753444362,-159.934437,0.0001863,2]
[363530451,1748753444372,-159.934437,0.0001863,2]
[363530453,1748753444382,-151.0,0.0001863,2]
[363530455,1748753444391,-151.0,0.0001863,2]
[363530457,1748753444402,-575.98,0.0001863,2]
[363530459,1748753444412,-663.33,0.0001863,2]
[363530461,1748753444421,-430.0,0.0001863,2]
[363530463,1748753444431,-430.0,0.0001863,2]
[363530465,1748753444441,-531.97,0.0001863,2]
[363530467,1748753444451,-430.0,0.0001863,2]
[363530469,1748753444460,-1359.36,0.0001863,2]
[363530471,1748753444470,-430.0,0.0001863,2]
[363530473,1748753444484,-430.0,0.0001863,2]
[363530475,1748753444494,-430.0,0.0001863,2]
[363530478,1748753444506,-430.0,0.0001863,2]
[363530480,1748753444516,-430.0,0.0001863,2]
[363530482,1748753444527,-566.34,0.0001863,2]
[363530484,1748753444538,-430.0,0.0001863,2]
[363530486,1748753444547,-234.41,0.0001863,2]
[363530488,1748753444558,-217.56,0.0001863,2]
[363530490,1748753444567,-430.0,0.0001863,2]
[363530492,1748753444577,-464.87,0.0001863,2]
[363530494,1748753444586,-430.0,0.0001863,2]
[363530496,1748753444596,-430.0,0.0001863,2]
[363530498,1748753444605,-455.83,0.0001863,2]
[363530500,1748753444615,-430.0,0.0001863,2]
[363530502,1748753444625,-155.0,0.0001863,2]
[363530504,1748753444634,-430.0,0.0001863,2]
[363530506,1748753444644,-430.0,0.0001863,2]
[363530508,1748753444655,-560.98,0.0001863,2]
[363530510,1748753444664,-467.84,0.0001863,2]
[363530512,1748753444674,-430.0,0.0001863,2]
[363530514,1748753444683,-1445.06,0.0001863,2]
[363530516,1748753444693,-336.91472645,0.00018652,2]
[363530518,1748753444703,-500.0,0.00018652,2]
[363530520,1748753444712,-500.0,0.00018652,2]
[363530522,1748753444722,-500.0,0.00018652,2]
[363530524,1748753444732,-500.0,0.00018652,2]
[363530526,1748753444742,-159.35051418,0.00018652,2]
[363530528,1748753444752,-500.0,0.00018652,2]
[363530530,1748753444761,-500.0,0.00018652,2]
[363530532,1748753444771,-500.0,0.00018652,2]
[363530534,1748753444781,-728.13,0.00018653,2]
[363530536,1748753444791,-945.44,0.00018653,2]
[363530538,1748753444801,-1308.5,0.00018653,2]
[363530540,1748753444810,-829.74,0.00018653,2]
[363530542,1748753444820,-514.28,0.00018653,2]
[363530544,1748753444830,-1858.18333773,0.00018701,2]
[363530546,1748753444839,-1126.60467215,0.00018728,2]
[363530548,1748753444849,-2857.8,0.000188,2]
[363530550,1748753444859,-2857.8,0.000188,2]
[363530552,1748753444871,-350.938692,0.00018831,2]
[363530554,1748753444880,-350.938692,0.00018831,2]
[363530556,1748753444889,-500.0,0.00018845,2]
[363530559,1748753444899,-319.1604193,0.00018849,2]
[363530561,1748753444910,-154.7610475,0.00018849,2]
[363530562,1748753444920,-153.0,0.00018849,2]
[363530564,1748753444929,-153.0,0.00018849,2]
[363530566,1748753444939,-153.0,0.00018849,2]
[363530569,1748753444949,-153.0,0.00018849,2]
[363530571,1748753444958,-1755.06826569,0.000189,2]
[363530573,1748753444968,-430.0,0.00018904,2]
[363530574,1748753444978,-575.98,0.00018904,2]
[363530575,1748753444989,-663.33,0.00018904,2]
[363530576,1748753444998,-430.0,0.00018904,2]
[363530577,1748753445008,-430.0,0.00018904,2]
[363530578,1748753445017,-531.97,0.00018904,2]
[363530580,1748753445028,-430.0,0.00018904,2]
[363530582,1748753445038,-1359.36,0.00018904,2]
[363530584,1748753445048,-430.0,0.00018904,2]
[363530586,1748753445058,-430.0,0.00018904,2]
[363530588,1748753445067,-430.0,0.00018904,2]
[363530590,1748753445077,-430.0,0.00018904,2]
[363530592,1748753445087,-430.0,0.00018904,2]
[363530594,1748753445097,-566.34,0.00018904,2]
[363530596,1748753445107,-430.0,0.00018904,2]
[363530598,1748753445116,-430.0,0.00018904,2]
[363530600,1748753445126,-430.0,0.00018904,2]
[363530602,1748753445135,-430.0,0.00018904,2]
[363530604,1748753445144,-455.83,0.00018904,2]
[363530606,1748753445155,-430.0,0.00018904,2]
[363530608,1748753445164,-430.0,0.00018904,2]
[363530610,1748753445174,-401.81431858,0.00018904,2]
[363530613,1748753445184,-560.98,0.00018904,2]
[363530615,1748753445194,-467.84,0.00018904,2]
[363530617,1748753445204,-430.0,0.00018904,2]
[363530619,1748753445214,-1445.06,0.00018904,2]
[363530621,1748753445224,-728.13,0.00018927,2]
[363530623,1748753445233,-945.44,0.00018927,2]
[363530625,1748753445243,-1308.5,0.00018927,2]
[363530627,1748753445254,-829.74,0.00018927,2]
[363530629,1748753445264,-1126.60467215,0.00018934,2]
[363530631,1748753445274,-596.16,0.00018943,2]
[363530633,1748753445284,-1126.60467215,0.00019141,2]
[363530635,1748753445293,-500.0,0.00019164,2]
[363530637,1748753445303,-151.0,0.00019164,2]
[363530639,1748753445313,-500.0,0.00019164,2]
[363530641,1748753445323,-430.0,0.00019178,2]
[363530643,1748753445332,-213.466539,0.00019178,2]
[363530645,1748753445342,-151.0,0.00019178,2]
[363530647,1748753445352,-397.6958,0.00019178,2]
[363530649,1748753445362,-397.6958,0.00019178,2]
[363530652,1748753445371,-151.0,0.00019178,2]
[363530654,1748753445380,-575.98,0.00019178,2]
[363530656,1748753445391,-663.33,0.00019178,2]
[363530658,1748753445400,-430.0,0.00019178,2]
[363530660,1748753445411,-430.0,0.00019178,2]
[363530662,1748753445421,-531.97,0.00019178,2]
[363530664,1748753445431,-430.0,0.00019178,2]
[363530666,1748753445442,-803.729258,0.00019178,2]
[363530668,1748753445452,-1359.36,0.00019178,2]
[363530670,1748753445462,-430.0,0.00019178,2]
[363530672,1748753445473,-576.7,0.00019178,2]
[363530674,1748753445487,-430.0,0.00019178,2]
[363530676,1748753445497,-325.1,0.00019178,2]
[363530678,1748753445507,-430.0,0.00019178,2]
[363530681,1748753445518,-566.34,0.00019178,2]
[363530683,1748753445529,-430.0,0.00019178,2]
[363530685,1748753445539,-430.0,0.00019178,2]
[363530687,1748753445548,-430.0,0.00019178,2]
[363530689,1748753445560,-430.0,0.00019178,2]
[363530691,1748753445570,-455.83,0.00019178,2]
[363530693,1748753445580,-430.0,0.00019178,2]
[363530695,1748753445590,-430.0,0.00019178,2]
[363530697,1748753445600,-560.98,0.00019178,2]
[363530699,1748753445609,-467.84,0.00019178,2]
[363530701,1748753445619,-430.0,0.00019178,2]
[363530703,1748753445629,-500.0,0.00019178,2]
[363530705,1748753445638,-500.0,0.00019178,2]
[363530707,1748753445648,-500.0,0.00019178,2]
[363530709,1748753445659,-1445.06,0.00019178,2]
[363530711,1748753445668,-300.0,0.00019178,2]
[363530713,1748753445678,-151.0,0.00019178,2]
[363530715,1748753445688,-185.142292,0.00019178,2]
[363530717,1748753445698,-198.0,0.00019191,2]
[363530719,1748753445708,-500.0,0.00019191,2]
[363530721,1748753445718,-728.13,0.00019201,2]
[363530723,1748753445728,-945.44,0.00019201,2]
[363530725,1748753445738,-1308.5,0.00019201,2]
[363530727,1748753445747,-829.74,0.00019201,2]
[363530729,1748753445758,-280.141521,0.00019219,2]
[363530731,1748753445768,-156.587,0.00019233,2]
[363530747,1748753445913,-160.0,0.00019288,3]
[363530749,1748753445923,-162.380719,0.00019288,2]
[363530751,1748753445933,-8439.75533364,0.00019329,2]
[363530753,1748753445943,-168.3888056,0.00019343,2]
[363530755,1748753445953,-1126.60467215,0.00019348,2]
[363530757,1748753445963,-1000.0,0.00019393,2]
[363530759,1748753445973,-153.0,0.00019397,2]
[363530761,1748753445983,-153.0,0.00019397,2]
[363530763,1748753445992,-153.0,0.00019397,2]
[363530766,1748753446002,-174.61919141,0.00019398,2]
[363530768,1748753446012,-450.59,0.00019452,2]
[363530770,1748753446021,-575.98,0.00019452,2]
[363530772,1748753446033,-663.33,0.00019452,2]
[363530774,1748753446043,-430.0,0.00019452,2]
[363530776,1748753446053,-430.0,0.00019452,2]
[363530778,1748753446063,-531.97,0.00019452,2]
[363530780,1748753446072,-498.29994885,0.00019452,2]
[363530782,1748753446082,-1359.36,0.00019452,2]
[363530784,1748753446092,-430.0,0.00019452,2]
[363530786,1748753446101,-430.0,0.00019452,2]
[363530788,1748753446111,-415.98,0.00019452,2]
[363530790,1748753446121,-566.34,0.00019452,2]
[363530792,1748753446130,-430.0,0.00019452,2]
[363530795,1748753446141,-430.0,0.00019452,2]
[363530797,1748753446151,-430.0,0.00019452,2]
[363530799,1748753446162,-430.0,0.00019452,2]
[363530801,1748753446172,-455.83,0.00019452,2]
[363530803,1748753446181,-306.74,0.00019452,2]
[363530805,1748753446192,-430.0,0.00019452,2]
[363530807,1748753446203,-560.98,0.00019452,2]
[363530809,1748753446212,-467.84,0.00019452,2]
[363530811,1748753446221,-430.0,0.00019452,2]
[363530813,1748753446230,-1445.06,0.00019452,2]
[363530815,1748753446241,-166.65485504,0.00019453,2]
[363530817,1748753446253,-207.4,0.00019469,2]
[363530819,1748753446262,-728.13,0.00019475,2]
[363530821,1748753446272,-945.44,0.00019475,2]
[363530823,1748753446281,-1308.5,0.00019475,2]
[363530826,1748753446295,-829.74,0.00019475,2]
[363530828,1748753446305,-1126.60467215,0.00019555,2]
[363530830,1748753446315,-151.0,0.00019556,2]
[363530832,1748753446324,-779.02,0.00019644,2]
[363530834,1748753446334,-498.8,0.00019716,3]
[363530836,1748753446344,-159.934437,0.00019726,2]
[363530838,1748753446353,-159.934437,0.00019726,2]
[363530840,1748753446364,-151.0,0.00019726,2]
[363530842,1748753446373,-151.0,0.00019726,2]
[363530844,1748753446383,-575.98,0.00019726,2]
[363530846,1748753446393,-663.33,0.00019726,2]
[363530848,1748753446402,-430.0,0.00019726,2]
[363530850,1748753446412,-327.31,0.00019726,2]
[363530852,1748753446422,-531.97,0.00019726,2]
[363530854,1748753446432,-1359.36,0.00019726,2]
[363530856,1748753446441,-430.0,0.00019726,2]
[363530858,1748753446451,-430.0,0.00019726,2]
[363530860,1748753446461,-566.34,0.00019726,2]
[363530862,1748753446470,-362.25,0.00019726,2]
[363530865,1748753446484,-430.0,0.00019726,2]
[363530867,1748753446493,-430.0,0.00019726,2]
[363530869,1748753446502,-430.0,0.00019726,2]
[363530871,1748753446511,-455.83,0.00019726,2]
[363530873,1748753446522,-481.34,0.00019726,2]
[363530875,1748753446531,-560.98,0.00019726,2]
[363530877,1748753446541,-467.84,0.00019726,2]
[363530879,1748753446550,-500.81,0.00019726,2]
[363530880,1748753446560,-1445.06,0.00019726,2]
[363530883,1748753446571,-728.13,0.00019749,2]
[363530885,1748753446581,-945.44,0.00019749,2]
[363530887,1748753446590,-1308.5,0.00019749,2]
[363530889,1748753446600,-829.74,0.00019749,2]
[363530891,1748753446609,-1126.60467215,0.00019762,2]
[363530893,1748753446618,-153.0,0.00019918,2]
[363530895,1748753446627,-1195.8619859,0.00019918,2]
[363530897,1748753446637,-153.0,0.00019918,2]
[363530899,1748753446646,-153.0,0.00019918,2]
[363530901,1748753446655,-153.0,0.00019918,2]
[363530902,1748753446665,-153.0,0.00019918,2]
[363530904,1748753446674,-153.0,0.00019918,2]
[363530907,1748753446686,-510.46320827,0.00019941,2]
[363530909,1748753446696,-1858.18333773,0.00019967,2]
[363530911,1748753446705,-1126.60467215,0.00019969,2]
[363530913,1748753446715,-1713.465921,0.0002,2]
[363530915,1748753446724,-1713.465921,0.0002,2]
[363530917,1748753446733,-151.0,0.0002,2]
[363530919,1748753446743,-350.938692,0.0002,2]
[363530921,1748753446752,-151.0,0.0002,2]
[363530923,1748753446762,-350.938692,0.0002,2]
[363530925,1748753446771,-151.0,0.0002,2]
[363530927,1748753446781,-575.98,0.0002,2]
[363530929,1748753446791,-663.33,0.0002,2]
[363530931,1748753446800,-430.0,0.0002,2]
[363530933,1748753446810,-531.97,0.0002,2]
[363530935,1748753446820,-803.729258,0.0002,2]
[363530937,1748753446829,-803.729258,0.0002,2]
[363530939,1748753446839,-1359.36,0.0002,2]
[363530941,1748753446849,-430.0,0.0002,2]
[363530943,1748753446859,-430.0,0.0002,2]
[363530945,1748753446869,-566.34,0.0002,2]
[363530947,1748753446878,-151.0,0.0002,2]
[363530949,1748753446888,-410.62,0.0002,2]
[363530951,1748753446898,-284.62323822,0.0002,2]
[363530953,1748753446908,-430.0,0.0002,2]
[363530955,1748753446918,-151.0,0.0002,2]
[363530957,1748753446928,-455.83,0.0002,2]
[363530959,1748753446938,-181.983287,0.0002,2]
[363530961,1748753446948,-181.983287,0.0002,2]
[363530964,1748753446958,-560.98,0.0002,2]
[363530966,1748753446968,-467.84,0.0002,2]
[363530968,1748753446977,-1445.06,0.0002,2]
[363530970,1748753446986,-728.13,0.00020023,2]
[363530972,1748753446996,-945.44,0.00020023,2]
[363530974,1748753447006,-1308.5,0.00020023,2]
[363530976,1748753447016,-829.74,0.00020023,2]
[363530978,1748753447025,-500.0,0.00020062,2]
[363530980,1748753447035,-1126.60467215,0.00020176,2]
[363530982,1748753447044,-668.151178,0.00020187,2]
[363530984,1748753447054,-500.0,0.0002026,2]
[363530986,1748753447063,-151.0,0.00020273,2]
[363530987,1748753447072,-151.0,0.00020273,2]
[363530990,1748753447082,-575.71384,0.00020273,2]
[363530992,1748753447092,-575.71384,0.00020273,2]
[363530994,1748753447101,-575.98,0.00020273,2]
[363530996,1748753447111,-663.33,0.00020273,2]
[363530998,1748753447121,-430.0,0.00020273,2]
[363531000,1748753447131,-531.97,0.00020273,2]
[363531002,1748753447140,-1359.36,0.00020273,2]
[363531004,1748753447149,-430.0,0.00020273,2]
[363531006,1748753447160,-430.0,0.00020273,2]
[363531008,1748753447170,-566.34,0.00020273,2]
[363531010,1748753447179,-430.0,0.00020273,2]
[363531012,1748753447188,-455.83,0.00020273,2]
[363531014,1748753447198,-560.98,0.00020273,2]
[363531016,1748753447208,-467.84,0.00020273,2]
[363531018,1748753447217,-1445.06,0.00020273,2]
[363531020,1748753447227,-155.6687316,0.00020274,2]
[363531022,1748753447236,-728.13,0.00020297,2]
[363531024,1748753447246,-945.44,0.00020297,2]
[363531026,1748753447256,-1308.5,0.00020297,2]
[363531028,1748753447266,-829.74,0.00020297,2]
[363531030,1748753447275,-1126.60467215,0.00020383,3]
[363531032,1748753447285,-160.0,0.00020474,4]
[363531034,1748753447294,-469.609326,0.00020474,2]
[363531036,1748753447303,-469.609326,0.00020474,2]
[363531038,1748753447312,-153.0,0.00020493,2]
[363531040,1748753447322,-575.98,0.00020547,2]
[363531042,1748753447332,-663.33,0.00020547,2]
[363531044,1748753447342,-430.0,0.00020547,2]
[363531046,1748753447352,-531.97,0.00020547,2]
[363531048,1748753447361,-1359.36,0.00020547,2]
[363531050,1748753447371,-430.0,0.00020547,2]
[363531052,1748753447381,-430.0,0.00020547,2]
[363531055,1748753447391,-566.34,0.00020547,2]
[363531057,1748753447401,-430.0,0.00020547,2]
[363531059,1748753447411,-455.83,0.00020547,2]
[363531061,1748753447422,-560.98,0.00020547,2]
[363531063,1748753447431,-467.84,0.00020547,2]
[363531065,1748753447441,-1445.06,0.00020547,2]
[363531067,1748753447450,-728.13,0.00020571,2]
[363531069,1748753447460,-945.44,0.00020571,2]
[363531071,1748753447470,-1308.5,0.00020571,2]
[363531073,1748753447482,-829.74,0.00020571,2]
[363531075,1748753447492,-870.535164,0.00020582,3]
[363531077,1748753447502,-1126.60467215,0.0002059,3]
[363531079,1748753447512,-503.47785552,0.00020609,2]
[363531081,1748753447523,-1192.32,0.00020665,2]
[363531083,1748753447532,-1126.60467215,0.00020797,4]
[363531085,1748753447542,-151.0,0.00020821,2]
[363531087,1748753447552,-397.6958,0.00020821,2]
[363531089,1748753447563,-397.6958,0.00020821,2]
[363531091,1748753447573,-575.98,0.00020821,2]
[363531093,1748753447583,-663.33,0.00020821,2]
[363531096,1748753447594,-430.0,0.00020821,2]
[363531098,1748753447603,-531.97,0.00020821,2]
[363531100,1748753447613,-1359.36,0.00020821,2]
[363531102,1748753447623,-183.22,0.00020821,2]
[363531104,1748753447633,-430.0,0.00020821,2]
[363531106,1748753447642,-566.34,0.00020821,2]
[363531108,1748753447653,-430.0,0.00020821,2]
[363531110,1748753447663,-455.83,0.00020821,2]
[363531112,1748753447673,-560.98,0.00020821,2]
[363531114,1748753447682,-467.84,0.00020821,2]
[363531115,1748753447691,-1445.06,0.00020821,2]
[363531117,1748753447701,-212.80060342,0.0002083,3]
[363531119,1748753447710,-215.0738,0.00020838,2]
[363531121,1748753447720,-728.13,0.00020845,2]
[363531124,1748753447730,-945.44,0.00020845,2]
[363531126,1748753447740,-1308.5,0.00020845,2]
[363531128,1748753447749,-829.74,0.00020845,2]
[363531130,1748753447759,-800.0,0.0002092,2]
[363531132,1748753447769,-247.16452505,0.00020994,2]
[363531134,1748753447779,-7051.83848748,0.00021003,2]
[363531777,1748753455684,-430.0,0.00016461,2]
[363531778,1748753455694,-430.0,0.00016461,2]
[363531779,1748753455703,-430.0,0.00016735,2]
[363531780,1748753455712,-430.0,0.00017009,2]
[363531781,1748753455721,-445.64,0.00017283,2]
[363531782,1748753455731,-151.0,0.0002,2]
[363531783,1748753455741,-151.0,0.0002,2]
[363531784,1748753455751,-16502.58574854,0.00021003,2]
[363531817,1748753506581,155.09940068,6.8e-07,2]
[363531818,1748753506709,155.09940068,6.8e-07,2]
[363531820,1748753807313,155.67469608,6.8e-07,2]
[363531821,1748753807414,155.67469608,6.8e-07,2]
[363531822,1748753807628,155.67469608,6.8e-07,2]
[363531823,1748753951519,-462.318191,0.00015461,2]
[363531824,1748753951543,-101.681809,0.00016273,2]
[363531826,1748754237598,626.850256,0.00013699,2]
[363531832,1748754272203,-243.88212006,0.00015949,2]
[363531833,1748754272229,-186.11787994,0.00016338,2]
[363531834,1748754337879,-430.0,0.00016175,2]
[363531836,1748754425138,-285.56305847,0.00016175,2]
[363531837,1748754425160,-424.12074134,0.00016437,2]
[363531838,1748754425184,-1200.0,0.00016437,2]
[363531839,1748754425206,-198.32103091,0.00016437,2]
[363531841,1748754453099,-3696.42407668,0.00016273,2]
[363531842,1748754453131,-101.67896909,0.00016437,2]
[363531843,1748754453159,-300.0,0.00016437,2]
[363531844,1748754453185,-430.0,0.00016438,2]
[363531845,1748754453211,-206.037986,0.00016438,2]
[363531846,1748754453240,-430.0,0.00016438,2]
[363531847,1748754453266,-430.0,0.00016438,2]
[363531848,1748754453291,-500.0,0.00016438,2]
[363531849,1748754453317,-500.0,0.00016438,2]
[363531850,1748754453344,-430.0,0.00016438,2]
[363531851,1748754453369,-365.70755671,0.00016438,2]